[Event "Titled Tuesday Blitz November 14 Early 2023"]
[White "Kanyamarala, Trisha"]
[Black "Goltsev, Dmitry"]
[WhiteFideId "45004722"]
[BlackFideId "24176710"]
[WhiteElo "2506"]
[BlackElo "2753"]
[Result "1-0"]
[Round "3"]
[TimeControl "180+1"]
[Date "2023.11.14"]
[WhiteClock "0:00:06"]
[BlackClock "0:00:08"]
[Board "91"]

1. c4 {[%clk 0:02:58]}  e5 {[%clk 0:03:00]} 2. Nc3 {[%clk 0:02:57]}  Nf6 {[%clk 0:03:00]} 3. g3 {[%clk 0:02:57]}  c6 {[%clk 0:03:00]} 4. Nf3 {[%clk 0:02:54]}  Bd6 {[%clk 0:02:59]} 5. Bg2 {[%clk 0:02:53]}  O-O {[%clk 0:02:59]} 6. O-O {[%clk 0:02:53]}  Bc7 {[%clk 0:02:59]} 7. d3 {[%clk 0:02:46]}  d5 {[%clk 0:02:59]} 8. Rb1 {[%clk 0:02:30]}  a5 {[%clk 0:02:57]} 9. a3 {[%clk 0:02:29]}  Na6 {[%clk 0:02:56]} 10. b4 {[%clk 0:02:26]}  axb4 {[%clk 0:02:56]} 11. axb4 {[%clk 0:02:25]}  e4 {[%clk 0:02:55]} 12. Nd4 {[%clk 0:02:22]}  Be5 {[%clk 0:02:53]} 13. e3 {[%clk 0:02:16]}  Nxb4 {[%clk 0:02:49]} 14. dxe4 {[%clk 0:02:05]}  dxc4 {[%clk 0:02:42]} 15. Rxb4 {[%clk 0:02:02]}  c5 {[%clk 0:02:41]} 16. Rxc4 {[%clk 0:01:57]}  cxd4 {[%clk 0:02:40]} 17. exd4 {[%clk 0:01:57]}  Be6 {[%clk 0:02:38]} 18. Rb4 {[%clk 0:01:48]}  Bd6 {[%clk 0:02:30]} 19. Rxb7 {[%clk 0:01:37]}  Bc4 {[%clk 0:02:29]} 20. Re1 {[%clk 0:01:35]}  Qa5 {[%clk 0:02:22]} 21. Bd2 {[%clk 0:01:22]}  Bb4 {[%clk 0:02:21]} 22. Rxb4 {[%clk 0:00:55]}  Qxb4 {[%clk 0:02:20]} 23. Nd5 {[%clk 0:00:54]}  Qb3 {[%clk 0:02:19]} 24. Nxf6+ {[%clk 0:00:52]}  gxf6 {[%clk 0:02:20]} 25. Qg4+ {[%clk 0:00:51]}  Kh8 {[%clk 0:02:20]} 26. Bh6 {[%clk 0:00:44]}  Rg8 {[%clk 0:02:20]} 27. Qf4 {[%clk 0:00:42]}  Qb6 {[%clk 0:02:16]} 28. e5 {[%clk 0:00:39]}  Rae8 {[%clk 0:02:03]} 29. Rc1 {[%clk 0:00:36]}  fxe5 {[%clk 0:01:49]} 30. dxe5 {[%clk 0:00:35]}  Bb3 {[%clk 0:01:43]} 31. Bg5 {[%clk 0:00:32]}  Rg6 {[%clk 0:01:31]} 32. Be4 {[%clk 0:00:24]}  Kg8 {[%clk 0:00:28]} 33. Bxg6 {[%clk 0:00:17]}  Qxg6 {[%clk 0:00:29]} 34. Bf6 {[%clk 0:00:16]}  Bd5 {[%clk 0:00:27]} 35. h4 {[%clk 0:00:12]}  Rb8 {[%clk 0:00:21]} 36. Rd1 {[%clk 0:00:11]}  Rb1 {[%clk 0:00:17]} 37. Qd2 {[%clk 0:00:06]}  Qe4 {[%clk 0:00:11]} 38. Qg5+ {[%clk 0:00:05]}  Qg6 {[%clk 0:00:11]} 39. Qxg6+ {[%clk 0:00:04]}  hxg6 {[%clk 0:00:09]} 40. Rxb1 {[%clk 0:00:05]}  g5 {[%clk 0:00:08]} 41. Rb8+ {[%clk 0:00:05]}  Kh7 {[%clk 0:00:08]} 42. hxg5 {[%clk 0:00:05]}  Kg6 {[%clk 0:00:09]} 43. Rg8+ {[%clk 0:00:05]}  Kh5 {[%clk 0:00:08]} 44. Rh8+ {[%clk 0:00:05]}  Kg6 {[%clk 0:00:08]} 45. Rh6+ {[%clk 0:00:05]}  Kf5 {[%clk 0:00:08]} 46. Rh4 {[%clk 0:00:05]}  Be6 {[%clk 0:00:08]} 47. Rb4 {[%clk 0:00:04]}  Kg6 {[%clk 0:00:09]} 48. f4 {[%clk 0:00:04]}  Kf5 {[%clk 0:00:09]} 49. g4+ {[%clk 0:00:04]}  Kxg4 {[%clk 0:00:09]} 50. f5+ {[%clk 0:00:04]}  Kxf5 {[%clk 0:00:09]} 51. Be7 {[%clk 0:00:05]}  Kxe5 {[%clk 0:00:08]} 52. Kf2 {[%clk 0:00:05]}  Kf5 {[%clk 0:00:09]} 53. Ke3 {[%clk 0:00:05]}  Kg6 {[%clk 0:00:09]} 54. Kf4 {[%clk 0:00:05]}  Ba2 {[%clk 0:00:10]} 55. Bf6 {[%clk 0:00:05]}  Be6 {[%clk 0:00:09]} 56. Rb8 {[%clk 0:00:05]}  Ba2 {[%clk 0:00:09]} 57. Rg8+ {[%clk 0:00:05]}  Kh7 {[%clk 0:00:08]} 58. Rh8+ {[%clk 0:00:06]}  Kg6 {[%clk 0:00:08]} 59. Rh6# {[%clk 0:00:06]} 1-0


[Site "https://www.chess.com"]

[Event "Titled Tuesday Blitz November 14 Early 2023"]
[White "De Silva, L M S T"]
[Black "Toktomushev, Teimur"]
[WhiteFideId "9953698"]
[BlackFideId "14176726"]
[WhiteElo "2728"]
[BlackElo "2501"]
[Result "0-1"]
[Round "3"]
[TimeControl "180+1"]
[Date "2023.11.14"]
[WhiteClock "0:00:17"]
[BlackClock "0:00:03"]
[Board "96"]

1. d4 {[%clk 0:02:56]}  d5 {[%clk 0:02:55]} 2. c4 {[%clk 0:02:53]}  e6 {[%clk 0:02:55]} 3. Nf3 {[%clk 0:02:52]}  Nf6 {[%clk 0:02:56]} 4. g3 {[%clk 0:02:51]}  Bb4+ {[%clk 0:02:54]} 5. Bd2 {[%clk 0:02:51]}  Be7 {[%clk 0:02:54]} 6. Bg2 {[%clk 0:02:50]}  O-O {[%clk 0:02:55]} 7. Qc2 {[%clk 0:02:50]}  c6 {[%clk 0:02:55]} 8. O-O {[%clk 0:02:50]}  b6 {[%clk 0:02:53]} 9. Nc3 {[%clk 0:02:44]}  Ba6 {[%clk 0:02:49]} 10. Ne5 {[%clk 0:02:40]}  Nfd7 {[%clk 0:02:38]} 11. Nxd7 {[%clk 0:02:13]}  Nxd7 {[%clk 0:01:08]} 12. cxd5 {[%clk 0:02:05]}  cxd5 {[%clk 0:01:09]} 13. Rfc1 {[%clk 0:02:05]}  b5 {[%clk 0:00:51]} 14. e4 {[%clk 0:01:53]}  b4 {[%clk 0:00:31]} 15. Na4 {[%clk 0:01:50]}  Rc8 {[%clk 0:00:31]} 16. Qb3 {[%clk 0:01:43]}  Bc4 {[%clk 0:00:26]} 17. Qe3 {[%clk 0:01:40]}  dxe4 {[%clk 0:00:17]} 18. Bxe4 {[%clk 0:01:40]}  Nf6 {[%clk 0:00:11]} 19. Bg2 {[%clk 0:01:20]}  Bd5 {[%clk 0:00:06]} 20. Bf1 {[%clk 0:01:21]}  Rxc1 {[%clk 0:00:02]} 21. Rxc1 {[%clk 0:01:21]}  Qa8 {[%clk 0:00:03]} 22. Nc5 {[%clk 0:01:17]}  Rc8 {[%clk 0:00:03]} 23. Bxb4 {[%clk 0:01:16]}  a5 {[%clk 0:00:02]} 24. Ba3 {[%clk 0:01:15]}  h6 {[%clk 0:00:02]} 25. b3 {[%clk 0:01:13]}  Ne4 {[%clk 0:00:02]} 26. h4 {[%clk 0:00:49]}  Nd6 {[%clk 0:00:02]} 27. Bb2 {[%clk 0:00:45]}  Nf5 {[%clk 0:00:02]} 28. Qd2 {[%clk 0:00:45]}  Bf6 {[%clk 0:00:03]} 29. Nd7 {[%clk 0:00:40]}  Rxc1 {[%clk 0:00:01]} 30. Nxf6+ {[%clk 0:00:41]}  gxf6 {[%clk 0:00:02]} 31. Qxc1 {[%clk 0:00:41]}  Kg7 {[%clk 0:00:02]} 32. Qf4 {[%clk 0:00:41]}  Qb7 {[%clk 0:00:01]} 33. Bc1 {[%clk 0:00:41]}  Qc6 {[%clk 0:00:02]} 34. g4 {[%clk 0:00:42]}  Nxd4 {[%clk 0:00:01]} 35. Qxh6+ {[%clk 0:00:42]}  Kg8 {[%clk 0:00:02]} 36. Be3 {[%clk 0:00:26]}  Nf3+ {[%clk 0:00:02]} 37. Kh1 {[%clk 0:00:25]}  Nd2+ {[%clk 0:00:02]} 38. Kg1 {[%clk 0:00:25]}  Nf3+ {[%clk 0:00:02]} 39. Kg2 {[%clk 0:00:25]}  Nd2+ {[%clk 0:00:03]} 40. f3 {[%clk 0:00:20]}  Bxf3+ {[%clk 0:00:03]} 41. Kf2 {[%clk 0:00:20]}  Nxf1 {[%clk 0:00:02]} 42. Kxf1 {[%clk 0:00:21]}  Qb5+ {[%clk 0:00:02]} 43. Kg1 {[%clk 0:00:22]}  Qe2 {[%clk 0:00:02]} 44. Bf2 {[%clk 0:00:20]}  Qd1+ {[%clk 0:00:02]} 45. Kh2 {[%clk 0:00:21]}  Qf1 {[%clk 0:00:03]} 46. Kg3 {[%clk 0:00:17]}  Qg2+ {[%clk 0:00:04]} 47. Kf4 {[%clk 0:00:18]}  Qxf2 {[%clk 0:00:05]} 48. Qxf6 {[%clk 0:00:18]}  Bxg4+ {[%clk 0:00:04]} 49. Kg5 {[%clk 0:00:16]}  Qxf6+ {[%clk 0:00:04]} 50. Kxf6 {[%clk 0:00:17]}  Bd1 {[%clk 0:00:04]} 51. Ke5 {[%clk 0:00:16]}  Kg7 {[%clk 0:00:03]} 52. Kd6 {[%clk 0:00:17]}  f5 {[%clk 0:00:02]} 53. Kc5 {[%clk 0:00:18]}  f4 {[%clk 0:00:03]} 54. Kd4 {[%clk 0:00:19]}  f3 {[%clk 0:00:03]} 55. Ke3 {[%clk 0:00:20]}  e5 {[%clk 0:00:03]} 56. b4 {[%clk 0:00:17]}  axb4 {[%clk 0:00:03]} 0-1


[Site "https://www.chess.com"]

[Event "Titled Tuesday Blitz November 14 Early 2023"]
[White "Krivonosov, Oleg"]
[Black "Zoete, Roelant"]
[WhiteFideId "11600349"]
[BlackFideId "40103269"]
[WhiteElo "2721"]
[BlackElo "2494"]
[Result "1-0"]
[Round "3"]
[TimeControl "180+1"]
[Date "2023.11.14"]
[WhiteClock "0:01:04"]
[BlackClock "0:00:10"]
[Board "98"]

1. Nf3 {[%clk 0:03:00]}  Nf6 {[%clk 0:02:41]} 2. c4 {[%clk 0:03:00]}  e6 {[%clk 0:02:36]} 3. g3 {[%clk 0:02:59]}  d5 {[%clk 0:02:35]} 4. d4 {[%clk 0:02:58]}  dxc4 {[%clk 0:02:34]} 5. Qa4+ {[%clk 0:02:57]}  Nbd7 {[%clk 0:02:34]} 6. Bg2 {[%clk 0:02:56]}  a6 {[%clk 0:02:32]} 7. Nc3 {[%clk 0:02:56]}  Rb8 {[%clk 0:02:23]} 8. Qxc4 {[%clk 0:02:54]}  b5 {[%clk 0:02:20]} 9. Qd3 {[%clk 0:02:55]}  Bb7 {[%clk 0:02:20]} 10. O-O {[%clk 0:02:54]}  Be7 {[%clk 0:02:20]} 11. Bg5 {[%clk 0:02:52]}  O-O {[%clk 0:02:20]} 12. Rfd1 {[%clk 0:02:52]}  c5 {[%clk 0:02:18]} 13. dxc5 {[%clk 0:02:51]}  Nxc5 {[%clk 0:02:14]} 14. Qxd8 {[%clk 0:02:50]}  Rfxd8 {[%clk 0:02:14]} 15. Ne5 {[%clk 0:02:50]}  Bxg2 {[%clk 0:01:53]} 16. Kxg2 {[%clk 0:02:51]}  Rxd1 {[%clk 0:01:53]} 17. Rxd1 {[%clk 0:02:48]}  Rd8 {[%clk 0:01:54]} 18. Nc6 {[%clk 0:02:39]}  Rxd1 {[%clk 0:01:53]} 19. Nxd1 {[%clk 0:02:34]}  Bd6 {[%clk 0:01:48]} 20. Bxf6 {[%clk 0:02:32]}  gxf6 {[%clk 0:01:49]} 21. f3 {[%clk 0:02:31]}  Kf8 {[%clk 0:01:44]} 22. Nf2 {[%clk 0:02:27]}  Ke8 {[%clk 0:01:43]} 23. Nb4 {[%clk 0:02:26]}  Kd7 {[%clk 0:01:37]} 24. Nbd3 {[%clk 0:02:25]}  f5 {[%clk 0:01:33]} 25. e4 {[%clk 0:02:17]}  fxe4 {[%clk 0:01:27]} 26. fxe4 {[%clk 0:02:16]}  f6 {[%clk 0:01:25]} 27. Nxc5+ {[%clk 0:02:15]}  Bxc5 {[%clk 0:01:24]} 28. Nd3 {[%clk 0:02:16]}  Kd6 {[%clk 0:01:23]} 29. g4 {[%clk 0:02:13]}  Bd4 {[%clk 0:01:17]} 30. b3 {[%clk 0:02:12]}  Ke7 {[%clk 0:00:45]} 31. Nb4 {[%clk 0:02:10]}  Kd6 {[%clk 0:00:29]} 32. Nd3 {[%clk 0:01:59]}  a5 {[%clk 0:00:28]} 33. Kf3 {[%clk 0:01:57]}  Bc3 {[%clk 0:00:25]} 34. h3 {[%clk 0:01:57]}  h6 {[%clk 0:00:25]} 35. Kf4 {[%clk 0:01:53]}  Bd2+ {[%clk 0:00:24]} 36. Kg3 {[%clk 0:01:53]}  Bg5 {[%clk 0:00:23]} 37. Kf3 {[%clk 0:01:49]}  Bd2 {[%clk 0:00:22]} 38. e5+ {[%clk 0:01:47]}  fxe5 {[%clk 0:00:22]} 39. Ke4 {[%clk 0:01:47]}  Bc3 {[%clk 0:00:21]} 40. h4 {[%clk 0:01:46]}  Bd2 {[%clk 0:00:16]} 41. Nxe5 {[%clk 0:01:42]}  Ke7 {[%clk 0:00:14]} 42. Nf3 {[%clk 0:01:36]}  Bc1 {[%clk 0:00:13]} 43. Nd4 {[%clk 0:01:35]}  b4 {[%clk 0:00:10]} 44. Nc6+ {[%clk 0:01:34]}  Kf6 {[%clk 0:00:10]} 45. Nxa5 {[%clk 0:01:35]}  Bd2 {[%clk 0:00:09]} 46. Nc4 {[%clk 0:01:30]}  Be1 {[%clk 0:00:09]} 47. h5 {[%clk 0:01:29]}  Kg5 {[%clk 0:00:08]} 48. Kf3 {[%clk 0:01:29]}  Bc3 {[%clk 0:00:07]} 49. Nd6 {[%clk 0:01:20]}  Kf6 {[%clk 0:00:06]} 50. Ne4+ {[%clk 0:01:20]}  Ke5 {[%clk 0:00:06]} 51. g5 {[%clk 0:01:19]}  hxg5 {[%clk 0:00:04]} 52. Nxg5 {[%clk 0:01:18]}  Kf5 {[%clk 0:00:05]} 53. Ne4 {[%clk 0:01:17]}  Bd4 {[%clk 0:00:04]} 54. Ng3+ {[%clk 0:01:14]}  Kg5 {[%clk 0:00:04]} 55. Ke4 {[%clk 0:01:14]}  Bf2 {[%clk 0:00:04]} 56. Ne2 {[%clk 0:01:13]}  Kxh5 {[%clk 0:00:04]} 57. Nf4+ {[%clk 0:01:13]}  Kg4 {[%clk 0:00:04]} 58. Nxe6 {[%clk 0:01:14]}  Bb6 {[%clk 0:00:03]} 59. Kd5 {[%clk 0:01:12]}  Kf3 {[%clk 0:00:02]} 60. Kc4 {[%clk 0:01:12]}  Ke4 {[%clk 0:00:02]} 61. Nc5+ {[%clk 0:01:12]}  Ke5 {[%clk 0:00:02]} 62. Nd3+ {[%clk 0:01:09]}  Kd6 {[%clk 0:00:02]} 63. Nxb4 {[%clk 0:01:10]}  Ba5 {[%clk 0:00:01]} 64. a4 {[%clk 0:01:09]}  Bxb4 {[%clk 0:00:01]} 65. Kxb4 {[%clk 0:01:08]}  Kc6 {[%clk 0:00:02]} 66. a5 {[%clk 0:01:08]}  Kb7 {[%clk 0:00:03]} 67. Kb5 {[%clk 0:01:08]}  Ka7 {[%clk 0:00:03]} 68. a6 {[%clk 0:01:05]}  Ka8 {[%clk 0:00:04]} 69. Kb6 {[%clk 0:01:05]}  Kb8 {[%clk 0:00:05]} 70. b4 {[%clk 0:01:05]}  Ka8 {[%clk 0:00:05]} 71. b5 {[%clk 0:01:05]}  Kb8 {[%clk 0:00:06]} 72. Kc6 {[%clk 0:01:05]}  Ka8 {[%clk 0:00:07]} 73. Kc7 {[%clk 0:01:05]}  Ka7 {[%clk 0:00:08]} 74. b6+ {[%clk 0:01:05]}  Kxa6 {[%clk 0:00:08]} 75. b7 {[%clk 0:01:06]}  Ka5 {[%clk 0:00:08]} 76. b8=Q {[%clk 0:01:05]}  Ka4 {[%clk 0:00:09]} 77. Kc6 {[%clk 0:01:05]}  Ka5 {[%clk 0:00:10]} 78. Qb5# {[%clk 0:01:04]} 1-0


[Site "https://www.chess.com"]

[Event "Titled Tuesday Blitz November 14 Early 2023"]
[White "Godzwon, Iwo"]
[Black "Morgunov, Marc"]
[WhiteFideId "21802483"]
[BlackFideId "1640305"]
[WhiteElo "2673"]
[BlackElo "2482"]
[Result "0-1"]
[Round "3"]
[TimeControl "180+1"]
[Date "2023.11.14"]
[WhiteClock "0:00:12"]
[BlackClock "0:01:10"]
[Board "101"]

1. e4 {[%clk 0:03:00]}  c5 {[%clk 0:02:58]} 2. Nf3 {[%clk 0:02:52]}  d6 {[%clk 0:02:58]} 3. c3 {[%clk 0:02:49]}  Nf6 {[%clk 0:02:58]} 4. h3 {[%clk 0:02:47]}  g6 {[%clk 0:02:55]} 5. Bd3 {[%clk 0:02:45]}  Bg7 {[%clk 0:02:55]} 6. O-O {[%clk 0:02:44]}  O-O {[%clk 0:02:53]} 7. Bc2 {[%clk 0:02:45]}  e5 {[%clk 0:02:54]} 8. Re1 {[%clk 0:02:43]}  Nc6 {[%clk 0:02:53]} 9. d3 {[%clk 0:02:43]}  Re8 {[%clk 0:02:52]} 10. Bg5 {[%clk 0:02:42]}  h6 {[%clk 0:02:50]} 11. Bxf6 {[%clk 0:02:43]}  Bxf6 {[%clk 0:02:51]} 12. Nbd2 {[%clk 0:02:44]}  Be6 {[%clk 0:02:51]} 13. Bb3 {[%clk 0:02:44]}  d5 {[%clk 0:02:42]} 14. Nf1 {[%clk 0:02:38]}  d4 {[%clk 0:02:37]} 15. Qc2 {[%clk 0:02:33]}  Rc8 {[%clk 0:02:34]} 16. N1d2 {[%clk 0:02:31]}  b5 {[%clk 0:02:29]} 17. a4 {[%clk 0:02:30]}  a6 {[%clk 0:02:29]} 18. axb5 {[%clk 0:02:31]}  axb5 {[%clk 0:02:30]} 19. Ra6 {[%clk 0:02:30]}  Qd7 {[%clk 0:02:20]} 20. Rea1 {[%clk 0:02:03]}  Red8 {[%clk 0:01:48]} 21. Bxe6 {[%clk 0:01:59]}  Qxe6 {[%clk 0:01:48]} 22. Rb6 {[%clk 0:01:55]}  Nb4 {[%clk 0:01:42]} 23. Rxe6 {[%clk 0:01:44]}  Nxc2 {[%clk 0:01:41]} 24. Rxf6 {[%clk 0:01:44]}  Nxa1 {[%clk 0:01:41]} 25. Nxe5 {[%clk 0:01:45]}  dxc3 {[%clk 0:01:36]} 26. bxc3 {[%clk 0:01:46]}  c4 {[%clk 0:01:36]} 27. Rxf7 {[%clk 0:00:52]}  Nb3 {[%clk 0:01:15]} 28. Nxb3 {[%clk 0:00:14]}  cxb3 {[%clk 0:01:16]} 29. Rb7 {[%clk 0:00:15]}  Rb8 {[%clk 0:01:14]} 30. Rxb8 {[%clk 0:00:15]}  Rxb8 {[%clk 0:01:15]} 31. Nf3 {[%clk 0:00:15]}  b2 {[%clk 0:01:10]} 32. Nd2 {[%clk 0:00:15]}  Rc8 {[%clk 0:01:10]} 33. Kf1 {[%clk 0:00:11]}  Rxc3 {[%clk 0:01:10]} 34. Ke2 {[%clk 0:00:12]}  Rc2 {[%clk 0:01:11]} 35. Ke3 {[%clk 0:00:12]}  Rxd2 {[%clk 0:01:10]} 0-1


[Site "https://www.chess.com"]

[Event "Titled Tuesday Blitz November 14 Early 2023"]
[White "Dudzinski, Pawel"]
[Black "Gubajdullin, Alexei"]
[WhiteFideId "1117890"]
[BlackFideId "4141202"]
[WhiteElo "2482"]
[BlackElo "2671"]
[Result "1-0"]
[Round "3"]
[TimeControl "180+1"]
[Date "2023.11.14"]
[WhiteClock "0:00:46"]
[BlackClock "0:00:18"]
[Board "102"]

1. e4 {[%clk 0:03:00]}  g6 {[%clk 0:02:59]} 2. Nc3 {[%clk 0:02:59]}  Bg7 {[%clk 0:02:59]} 3. g3 {[%clk 0:02:59]}  d6 {[%clk 0:02:59]} 4. Bg2 {[%clk 0:03:00]}  Nf6 {[%clk 0:02:59]} 5. Nge2 {[%clk 0:02:59]}  c5 {[%clk 0:02:58]} 6. d4 {[%clk 0:02:59]}  cxd4 {[%clk 0:02:58]} 7. Nxd4 {[%clk 0:02:59]}  O-O {[%clk 0:02:58]} 8. h3 {[%clk 0:02:58]}  Nc6 {[%clk 0:02:58]} 9. Be3 {[%clk 0:02:59]}  Bd7 {[%clk 0:02:58]} 10. O-O {[%clk 0:02:58]}  Ne5 {[%clk 0:02:54]} 11. b3 {[%clk 0:02:57]}  Bc6 {[%clk 0:02:50]} 12. f4 {[%clk 0:02:53]}  Ned7 {[%clk 0:02:50]} 13. Nxc6 {[%clk 0:02:52]}  bxc6 {[%clk 0:02:50]} 14. Ne2 {[%clk 0:02:48]}  Qc7 {[%clk 0:02:45]} 15. c4 {[%clk 0:02:46]}  a5 {[%clk 0:02:42]} 16. Rc1 {[%clk 0:02:43]}  a4 {[%clk 0:02:41]} 17. b4 {[%clk 0:02:42]}  a3 {[%clk 0:02:41]} 18. Qd2 {[%clk 0:02:40]}  Ra4 {[%clk 0:02:39]} 19. Rb1 {[%clk 0:02:37]}  Rb8 {[%clk 0:02:38]} 20. Rb3 {[%clk 0:02:36]}  c5 {[%clk 0:02:37]} 21. Rfb1 {[%clk 0:02:22]}  cxb4 {[%clk 0:02:34]} 22. Rxb4 {[%clk 0:02:22]}  Raxb4 {[%clk 0:02:28]} 23. Rxb4 {[%clk 0:02:23]}  Nc5 {[%clk 0:02:15]} 24. Rxb8+ {[%clk 0:02:12]}  Qxb8 {[%clk 0:02:15]} 25. Bxc5 {[%clk 0:02:09]}  dxc5 {[%clk 0:02:15]} 26. e5 {[%clk 0:02:09]}  Ne8 {[%clk 0:02:13]} 27. Nc3 {[%clk 0:02:07]}  Qb2 {[%clk 0:02:08]} 28. Qxb2 {[%clk 0:01:59]}  axb2 {[%clk 0:02:08]} 29. a4 {[%clk 0:01:33]}  f6 {[%clk 0:02:04]} 30. Bd5+ {[%clk 0:01:32]}  Kf8 {[%clk 0:02:03]} 31. e6 {[%clk 0:01:24]}  f5 {[%clk 0:02:03]} 32. Nb1 {[%clk 0:01:21]}  Nc7 {[%clk 0:02:00]} 33. a5 {[%clk 0:01:19]}  Nxd5 {[%clk 0:01:56]} 34. cxd5 {[%clk 0:01:17]}  c4 {[%clk 0:01:57]} 35. a6 {[%clk 0:01:13]}  c3 {[%clk 0:01:51]} 36. a7 {[%clk 0:01:12]}  Bd4+ {[%clk 0:01:50]} 37. Kg2 {[%clk 0:01:12]}  Bxa7 {[%clk 0:01:43]} 38. Nxc3 {[%clk 0:01:12]}  h5 {[%clk 0:01:37]} 39. Kf3 {[%clk 0:01:10]}  Ke8 {[%clk 0:01:37]} 40. Ke2 {[%clk 0:00:57]}  Kd8 {[%clk 0:01:35]} 41. Kd3 {[%clk 0:00:57]}  Bf2 {[%clk 0:01:34]} 42. Kc2 {[%clk 0:00:57]}  Bxg3 {[%clk 0:01:28]} 43. Ne2 {[%clk 0:00:54]}  Bh4 {[%clk 0:00:43]} 44. Kxb2 {[%clk 0:00:53]}  Kc7 {[%clk 0:00:43]} 45. Kc3 {[%clk 0:00:52]}  Kd6 {[%clk 0:00:42]} 46. Kc4 {[%clk 0:00:50]}  g5 {[%clk 0:00:37]} 47. Nd4 {[%clk 0:00:48]}  Kc7 {[%clk 0:00:24]} 48. Nxf5 {[%clk 0:00:48]}  Bf2 {[%clk 0:00:21]} 49. fxg5 {[%clk 0:00:47]}  Kd8 {[%clk 0:00:18]} 50. g6 {[%clk 0:00:46]} 1-0


[Site "https://www.chess.com"]

[Event "Titled Tuesday Blitz November 14 Early 2023"]
[White "Grochal, Joey"]
[Black "Skliarov, Viktor"]
[WhiteFideId "1019945"]
[BlackFideId "14106736"]
[WhiteElo "2478"]
[BlackElo "2667"]
[Result "0-1"]
[Round "3"]
[TimeControl "180+1"]
[Date "2023.11.14"]
[WhiteClock "0:00:11"]
[BlackClock "0:00:23"]
[Board "105"]

1. e4 {[%clk 0:03:00]}  c5 {[%clk 0:03:00]} 2. Nf3 {[%clk 0:02:59]}  Nc6 {[%clk 0:03:00]} 3. d4 {[%clk 0:02:59]}  cxd4 {[%clk 0:03:01]} 4. Nxd4 {[%clk 0:02:59]}  Nf6 {[%clk 0:03:01]} 5. Nc3 {[%clk 0:02:59]}  e5 {[%clk 0:03:02]} 6. Ndb5 {[%clk 0:02:59]}  d6 {[%clk 0:03:02]} 7. Bg5 {[%clk 0:02:59]}  a6 {[%clk 0:03:02]} 8. Na3 {[%clk 0:02:59]}  b5 {[%clk 0:03:03]} 9. Nd5 {[%clk 0:03:00]}  Be7 {[%clk 0:03:04]} 10. Bxf6 {[%clk 0:03:00]}  Bxf6 {[%clk 0:03:04]} 11. c3 {[%clk 0:03:01]}  O-O {[%clk 0:03:05]} 12. Nc2 {[%clk 0:03:01]}  Bg5 {[%clk 0:03:04]} 13. a4 {[%clk 0:03:00]}  bxa4 {[%clk 0:03:05]} 14. Rxa4 {[%clk 0:03:00]}  a5 {[%clk 0:03:06]} 15. Bc4 {[%clk 0:03:00]}  Rb8 {[%clk 0:03:06]} 16. b3 {[%clk 0:02:59]}  Kh8 {[%clk 0:03:06]} 17. h4 {[%clk 0:02:55]}  Bh6 {[%clk 0:03:06]} 18. g4 {[%clk 0:02:51]}  f6 {[%clk 0:02:46]} 19. Nce3 {[%clk 0:02:42]}  Bd7 {[%clk 0:02:44]} 20. Ra2 {[%clk 0:02:34]}  Ne7 {[%clk 0:02:40]} 21. Nxe7 {[%clk 0:02:20]}  Qxe7 {[%clk 0:02:40]} 22. Nd5 {[%clk 0:02:17]}  Qd8 {[%clk 0:02:39]} 23. f3 {[%clk 0:01:48]}  Bc6 {[%clk 0:02:11]} 24. Rg2 {[%clk 0:01:30]}  Bxd5 {[%clk 0:02:01]} 25. Qxd5 {[%clk 0:01:27]}  Bf4 {[%clk 0:02:01]} 26. Ke2 {[%clk 0:01:17]}  Qb6 {[%clk 0:01:58]} 27. Qd3 {[%clk 0:01:05]}  a4 {[%clk 0:01:55]} 28. b4 {[%clk 0:01:05]}  Rfc8 {[%clk 0:01:55]} 29. Be6 {[%clk 0:01:03]}  Rc7 {[%clk 0:01:34]} 30. g5 {[%clk 0:01:02]}  fxg5 {[%clk 0:01:13]} 31. hxg5 {[%clk 0:01:01]}  g6 {[%clk 0:01:13]} 32. Rd1 {[%clk 0:00:54]}  Rf8 {[%clk 0:00:49]} 33. b5 {[%clk 0:00:53]}  Ra7 {[%clk 0:00:42]} 34. c4 {[%clk 0:00:52]}  a3 {[%clk 0:00:42]} 35. Rgg1 {[%clk 0:00:37]}  a2 {[%clk 0:00:40]} 36. Ra1 {[%clk 0:00:35]}  Qc5 {[%clk 0:00:25]} 37. Rgd1 {[%clk 0:00:32]}  Ra3 {[%clk 0:00:24]} 38. Qd5 {[%clk 0:00:10]}  Qe3+ {[%clk 0:00:24]} 39. Kf1 {[%clk 0:00:11]}  Qxf3+ {[%clk 0:00:24]} 40. Ke1 {[%clk 0:00:11]}  Re3+ {[%clk 0:00:22]} 41. Kd2 {[%clk 0:00:11]}  Re2# {[%clk 0:00:23]} 0-1


[Site "https://www.chess.com"]

[Event "Titled Tuesday Blitz November 14 Early 2023"]
[White "Pinero Rodriguez, Carlos Jose"]
[Black "Borgaonkar Akshay"]
[WhiteFideId "3901726"]
[BlackFideId "25639110"]
[WhiteElo "2475"]
[BlackElo "2663"]
[Result "1-0"]
[Round "3"]
[TimeControl "180+1"]
[Date "2023.11.14"]
[WhiteClock "0:00:19"]
[BlackClock "0:00:00"]
[Board "107"]

1. e4 {[%clk 0:03:00]}  c5 {[%clk 0:02:59]} 2. Nf3 {[%clk 0:03:00]}  a6 {[%clk 0:02:59]} 3. c3 {[%clk 0:02:59]}  e6 {[%clk 0:02:59]} 4. d4 {[%clk 0:02:59]}  d5 {[%clk 0:03:00]} 5. e5 {[%clk 0:02:58]}  Bd7 {[%clk 0:03:00]} 6. Bd3 {[%clk 0:02:56]}  Qb6 {[%clk 0:03:00]} 7. O-O {[%clk 0:02:54]}  Bb5 {[%clk 0:03:00]} 8. dxc5 {[%clk 0:02:39]}  Bxc5 {[%clk 0:02:59]} 9. b4 {[%clk 0:02:37]}  Be7 {[%clk 0:02:54]} 10. a4 {[%clk 0:02:36]}  Bxd3 {[%clk 0:02:53]} 11. Qxd3 {[%clk 0:02:37]}  Nc6 {[%clk 0:02:52]} 12. a5 {[%clk 0:02:34]}  Qc7 {[%clk 0:02:52]} 13. Bf4 {[%clk 0:02:33]}  g5 {[%clk 0:02:30]} 14. Nxg5 {[%clk 0:02:14]}  Bxg5 {[%clk 0:02:28]} 15. Bxg5 {[%clk 0:02:13]}  Qxe5 {[%clk 0:02:29]} 16. Bh4 {[%clk 0:02:08]}  Nge7 {[%clk 0:02:29]} 17. Nd2 {[%clk 0:02:01]}  Qf5 {[%clk 0:02:23]} 18. Qe2 {[%clk 0:01:56]}  Rg8 {[%clk 0:02:22]} 19. Bg3 {[%clk 0:01:55]}  h5 {[%clk 0:02:09]} 20. h4 {[%clk 0:01:23]}  Ng6 {[%clk 0:02:04]} 21. b5 {[%clk 0:01:13]}  Nce5 {[%clk 0:01:56]} 22. c4 {[%clk 0:01:08]}  Nf4 {[%clk 0:01:40]} 23. Bxf4 {[%clk 0:00:44]}  Qxf4 {[%clk 0:01:41]} 24. cxd5 {[%clk 0:00:44]}  O-O-O {[%clk 0:01:29]} 25. bxa6 {[%clk 0:00:39]}  Rxg2+ {[%clk 0:00:55]} 26. Kxg2 {[%clk 0:00:38]}  Rg8+ {[%clk 0:00:55]} 27. Kh3 {[%clk 0:00:38]}  Qf5+ {[%clk 0:00:43]} 28. Kh2 {[%clk 0:00:33]}  Qf4+ {[%clk 0:00:40]} 29. Kh3 {[%clk 0:00:33]}  Qf5+ {[%clk 0:00:23]} 30. Kh2 {[%clk 0:00:32]}  Ng4+ {[%clk 0:00:15]} 31. Kh1 {[%clk 0:00:29]}  Qf4 {[%clk 0:00:12]} 32. f3 {[%clk 0:00:24]}  Ne3 {[%clk 0:00:07]} 33. axb7+ {[%clk 0:00:22]}  Kb8 {[%clk 0:00:07]} 34. Qh2 {[%clk 0:00:22]}  Rg3 {[%clk 0:00:07]} 35. a6 {[%clk 0:00:19]}  Ka7 {[%clk 0:00:05]} 36. b8=Q+ {[%clk 0:00:19]}  Qxb8 {[%clk 0:00:04]} 37. Rfb1 {[%clk 0:00:19]}  Qf4 {[%clk 0:00:04]} 38. Rb7+ {[%clk 0:00:19]}  Ka8 {[%clk 0:00:00]} 39. a7 {[%clk 0:00:19]} 1-0


[Site "https://www.chess.com"]